[Event "CCT Chessable Masters D-III 2024"]
[Site "Online"]
[Date "2024.02.02"]
[Round "1"]
[White "Antipov, Mikhail Al."]
[Black "Matlakov, Maxim"]
[Result "1/2-1/2"]
[ECO "C47"]
[WhiteElo "2604"]
[BlackElo "2662"]
[Annotator "RC"]
[PlyCount "206"]
[EventDate "2024.01.12"]
[EventType "k.o."]
[EventCountry "NET"]
[SourceTitle "playchess.com"]
[Source "ChessBase"]
[SourceQuality "1"]
[TimeControl "600+2"]

1. e4 {[%emt 0:00:03]} e5 {[%emt 0:00:05]} 2. Nf3 {[%emt 0:00:01]} Nc6 {[%emt 0:00:01]} 3. Nc3 {[%emt 0:00:06]} Nf6 {[%emt 0:00:01]} 4. h3 {[%emt 0:00:00]} d5 {[%emt 0:00:03]} 5. exd5 {[%emt 0:00:02]} Nxd5 {[%emt 0:00:02]} 6. Bb5 {[%emt 0:00:00]} Nxc3 {[%emt 0:00:01]} 7. bxc3 {[%emt 0:00:00]} Bd6 {[%emt 0:00:01]} 8. d4 {[%emt 0:00:02]} exd4 {[%emt 0:00:02]} 9. O-O {[%emt 0:00:03]} O-O {[%emt 0:00:02]} 10. cxd4 {[%emt 0:00:01]} h6 {[%emt 0:00:07]} 11. Bb2 {[%emt 0:00:02]} Qf6 {[%emt 0:00:13]} 12. Re1 {[%emt 0:01:23]} Bf5 {[%emt 0:00:26]} 13. Rb1 {[%emt 0:04:11]} Nb4 {[%emt 0:03:17]} 14. d5 {[%emt 0:00:24]} Bxc2 {[%emt 0:00:11]} 15. Bxf6 {[%emt 0:01:26]} Bxd1 {[%emt 0:00:03]} 16. Rexd1 {[%emt 0:00:14]} gxf6 {[%emt 0:00:02]} 17. Rd2 {[%emt 0:00:00]} Rfd8 {[%emt 0:00:31]} 18. Bc4 {[%emt 0:00:30]} Rab8 {[%emt 0:00:28]} 19. Nd4 {[%emt 0:00:16]} Nxd5 {[%emt 0:01:24]} 20. Bxd5 {[%emt 0:00:03]} Bf4 {[%emt 0:00:01]} 21. Re2 {[%emt 0:00:01]} Rxd5 {[%emt 0:00:03]} 22. Nc6 {[%emt 0:00:00]} Rdd8 {[%emt 0:00:23]} 23. Nxd8 {[%emt 0:00:07]} Rxd8 {[%emt 0:00:01]} 24. g3 {[%emt 0:00:01]} Be5 {[%emt 0:00:06]} 25. Rxb7 {[%emt 0:00:02]} a5 {[%emt 0:00:01]} 26. Ra7 {[%emt 0:00:21]} Rd5 {[%emt 0:00:05]} 27. Kg2 {[%emt 0:00:06]} Kg7 {[%emt 0:00:04]} 28. Re4 {[%emt 0:00:08]} Rc5 {[%emt 0:00:03]} 29. Ra6 {[%emt 0:00:47]} h5 {[%emt 0:00:07]} 30. g4 {[%emt 0:00:13]} h4 {[%emt 0:00:08]} 31. f4 {[%emt 0:00:07]} Bd6 {[%emt 0:00:09]} 32. Ra8 {[%emt 0:00:08]} f5 {[%emt 0:00:19]} 33. gxf5 {[%emt 0:00:01]} Kf6 {[%emt 0:00:24]} 34. Kf3 {[%emt 0:00:03]} Kxf5 {[%emt 0:00:02]} 35. Rh8 {[%emt 0:00:03]} Rc3+ {[%emt 0:01:02]} 36. Re3 {[%emt 0:00:01]} Rc4 {[%emt 0:00:59]} 37. Rh5+ {[%emt 0:00:04]} Kf6 {[%emt 0:00:04]} 38. Rxh4 {[%emt 0:00:05]} Ra4 {[%emt 0:00:01]} 39. Re2 {[%emt 0:00:02]} Ra3+ {[%emt 0:00:03]} 40. Kg4 {[%emt 0:00:01]} a4 {[%emt 0:00:03]} 41. Rh5 {[%emt 0:00:02]} Rc3 {[%emt 0:00:02]} 42. Rf5+ {[%emt 0:00:06]} Kg7 {[%emt 0:00:01]} 43. h4 {[%emt 0:00:02]} Rc1 {[%emt 0:00:03]} 44. Rg2 {[%emt 0:00:02]} a3 {[%emt 0:00:03]} 45. h5 {[%emt 0:00:07]} Rh1 {[%emt 0:00:03]} 46. Kf3+ {[%emt 0:00:03]} Kf8 {[%emt 0:00:02]} 47. Ke4 {[%emt 0:00:02]} Rh4 {[%emt 0:00:06]} 48. Kd5 {[%emt 0:00:03]} Bxf4 {[%emt 0:00:02]} 49. Rf2 {[%emt 0:00:01]} Bd6 {[%emt 0:00:02]} 50. Rxf7+ {[%emt 0:00:01]} Kg8 {[%emt 0:00:01]} 51. R7f5 {[%emt 0:00:02]} Kg7 {[%emt 0:00:01]} 52. Rg2+ {[%emt 0:00:01]} Kh6 {[%emt 0:00:01]} 53. Rg6+ {[%emt 0:00:04]} Kh7 {[%emt 0:00:01]} 54. Rg2 {[%emt 0:00:00]} Kh6 {[%emt 0:00:01]} 55. Ke6 {[%emt 0:00:02]} Rxh5 {[%emt 0:00:03]} 56. Rf6+ {[%emt 0:00:01]} Kh7 {[%emt 0:00:00]} 57. Kf7 {[%emt 0:00:00]} Be5 {[%emt 0:00:06]} 58. Rf3 {[%emt 0:00:06]} Bb2 {[%emt 0:00:01]} 59. Ke6 {[%emt 0:00:04]} c5 {[%emt 0:00:02]} 60. Rf7+ {[%emt 0:00:02]} Kh8 {[%emt 0:00:01]} 61. Rd2 {[%emt 0:00:02]} Re5+ {[%emt 0:00:01]} 62. Kd7 {[%emt 0:00:01]} Kg8 {[%emt 0:00:01]} 63. Rf3 {[%emt 0:00:03]} Rg5 {[%emt 0:00:04]} 64. Kc6 {[%emt 0:00:02]} c4 {[%emt 0:00:04]} 65. Rd8+ {[%emt 0:00:02]} Kg7 {[%emt 0:00:01]} 66. Rd7+ {[%emt 0:00:00]} Kg6 {[%emt 0:00:01]} 67. Rd6+ {[%emt 0:00:02]} Kh5 {[%emt 0:00:02]} 68. Rd5 {[%emt 0:00:02]} c3 {[%emt 0:00:03]} 69. Rf2 {[%emt 0:00:02]} Kg4 {[%emt 0:00:04]} 70. Rxg5+ {[%emt 0:00:01]} Kxg5 {[%emt 0:00:01]} 71. Kd5 {[%emt 0:00:00]} Kg4 {[%emt 0:00:02]} 72. Ke4 {[%emt 0:00:01]} Kg3 {[%emt 0:00:01]} 73. Rc2 {[%emt 0:00:01]} Kg4 {[%emt 0:00:02]} 74. Rg2+ {[%emt 0:00:02]} Kh3 {[%emt 0:00:04]} 75. Kf3 {[%emt 0:00:03]} Kh4 {[%emt 0:00:00]} 76. Rg4+ {[%emt 0:00:05]} Kh5 {[%emt 0:00:01]} 77. Rc4 {[%emt 0:00:00]} Kg5 {[%emt 0:00:01]} 78. Rc8 {[%emt 0:00:03]} Kf5 {[%emt 0:00:02]} 79. Rc5+ {[%emt 0:00:01]} Ke6 {[%emt 0:00:01]} 80. Ke4 {[%emt 0:00:00]} Kf6 {[%emt 0:00:01]} 81. Rc4 {[%emt 0:00:06]} Kg5 {[%emt 0:00:03]} 82. Rc6 {[%emt 0:00:01]} Ba1 {[%emt 0:00:06]} 83. Rc5+ {[%emt 0:00:05]} Kf6 {[%emt 0:00:01]} 84. Rc6+ {[%emt 0:00:00]} Kg5 {[%emt 0:00:01]} 85. Kd3 {[%emt 0:00:04]} Kf4 {[%emt 0:00:05]} 86. Rc5 {[%emt 0:00:02]} Bb2 {[%emt 0:00:01]} 87. Rd5 {[%emt 0:00:01]} Ba1 {[%emt 0:00:05]} 88. Ra5 {[%emt 0:00:02]} Bb2 {[%emt 0:00:02]} 89. Rc5 {[%emt 0:00:00]} Ba1 {[%emt 0:00:02]} 90. Rc4+ {[%emt 0:00:02]} Ke5 {[%emt 0:00:02]} 91. Rc5+ {[%emt 0:00:00]} Kd6 {[%emt 0:00:01]} 92. Kc4 {[%emt 0:00:02]} Bb2 {[%emt 0:00:02]} 93. Kb4 {[%emt 0:00:03]} Ke6 {[%emt 0:00:01]} 94. Kb3 {[%emt 0:00:03]} Kd6 {[%emt 0:00:01]} 95. Rh5 {[%emt 0:00:02]} Ke6 {[%emt 0:00:02]} 96. Rh3 {[%emt 0:00:01]} Kd6 {[%emt 0:00:01]} 97. Rxc3 {[%emt 0:00:00]} Bxc3 {[%emt 0:00:01]} 98. Kxc3 {[%emt 0:00:00]} Kc5 {[%emt 0:00:01]} 99. Kb3 {[%emt 0:00:00]} Kb6 {[%emt 0:00:00]} 100. Kxa3 {[%emt 0:00:00]} Ka5 {[%emt 0:00:00]} 101. Kb3 {[%emt 0:00:03]} Kb5 {[%emt 0:00:01]} 102. a4+ {[%emt 0:00:01]} Ka5 {[%emt 0:00:02]} 103. Kc4 {[%emt 0:00:00]} Kxa4 {[%emt 0:00:01]} 1/2-1/2

[Event "CCT Chessable Masters D-III 2024"]
[Site "Online"]
[Date "2024.02.02"]
[Round "1"]
[White "ViIIagra"]
[Black "KuzubovYuriy"]
[Result "1-0"]
[ECO "D00"]
[WhiteElo "2603"]
[BlackElo "2692"]
[Annotator "TA"]
[PlyCount "125"]
[EventDate "2024.01.12"]
[EventType "k.o."]
[EventCountry "NET"]
[SourceTitle "playchess.com"]
[Source "ChessBase"]
[SourceQuality "1"]
[TimeControl "600+2"]

{[%evp 45,125,-50,0,-41,-18,-70,0,0,10,7,14,0,3,6,84,91,80,0,7,0,0,0,2,0,59,13,50,32,132,64,70,52,105,76,94,0,204,191,423,451,452,443,478,416,747,563,752,749,746,742,727,716,771,774,725,720,731,710,29968,29969,29973,29970,29971,29971,29972,29970,29973,29974,29974,29973,29976,29977,29977,29976,29970,29971,29981,29982,29983,29984,29984,29985]} 1. d4 {[%emt 0:00:09]} Nf6 {[%emt 0:00:06]} 2. Nc3 {[%emt 0:00:10]} d5 {[%emt 0:00:05]} 3. Bf4 {[%emt 0:00:05]} a6 {[%emt 0:00:12]} 4. e3 {[%emt 0:00:00]} e6 {[%emt 0:00:06]} 5. g4 {[%emt 0:00:11]} Bb4 {[%emt 0:00:02]} 6. Nge2 {[%emt 0:00:02] D00: 1 d4 d5: Unusual lines.} Nxg4 {[%emt 0:00:03]} 7. Rg1 {[%emt 0:00:08]} Qh4 {[%emt 0:00:08]} 8. Bg3 {[%emt 0:00:01]} Qe7 {[%emt 0:00:11]} 9. a3 {[%emt 0:00:08]} Ba5 $146 {[%emt 0:01:03]} ({Predecessor:} 9... Bxc3+ 10. Nxc3 f5 11. Bd3 O-O 12. Qf3 c6 13. O-O-O e5 14. dxe5 Nd7 15. Qg2 Ndxe5 {1-0 Rodriguez Vila,A (2484)-Pacheco,D (2255) Rio Grande Centennial op 2021 (7)}) 10. b4 {[%emt 0:00:07]} Bb6 {[%emt 0:00:03]} 11. Nf4 {[%emt 0:00:16]} Nf6 {[%emt 0:00:38]} 12. Bh4 {[%emt 0:01:41]} Qf8 {[%emt 0:00:02]} 13. Bh3 {[%emt 0:00:27]} Nc6 {[%emt 0:00:22]} 14. Qf3 {[%emt 0:02:31]} Ne7 {[%emt 0:01:19]} 15. Nd3 {[%emt 0:00:31]} c6 {[%emt 0:00:35]} 16. Bxf6 {[%emt 0:01:24]} gxf6 {[%emt 0:00:03]} 17. Qxf6 {[%emt 0:00:00]} Ng6 {[%emt 0:00:14]} 18. Rb1 {[%emt 0:00:40]} Bd8 {[%emt 0:00:30]} 19. Qf3 {[%emt 0:00:02]} Qh6 {[%emt 0:00:06]} 20. Bg4 {[%emt 0:00:04]} Ke7 {[%emt 0:00:34]} 21. Bh5 {[%emt 0:00:14]} Bc7 {[%emt 0:00:14]} 22. h3 {[%emt 0:00:10]} Rf8 {[%emt 0:00:17]} 23. Ne2 {[%emt 0:00:50]} b6 {[%emt 0:00:53]} (23... Nh4 $15 24. Qg4 Ng6) 24. Nef4 {[%emt 0:00:04]} Bd7 {[%emt 0:00:06]} 25. Kd2 {[%emt 0:00:06]} ({White should try} 25. Bxg6 $1 $11 hxg6 26. Ne5) 25... a5 {[%emt 0:00:03]} (25... Bxf4 $15 26. Nxf4 e5 27. dxe5 Nxe5) 26. Bxg6 $1 $11 {[%emt 0:00:16]} hxg6 {[%emt 0:00:06]} 27. Qg3 {[%emt 0:00:03]} Bd6 {[%emt 0:00:09]} 28. Ne5 {[%emt 0:00:00]} Bxe5 {[%emt 0:00:45]} 29. dxe5 {[%emt 0:00:01]} Rh8 {[%emt 0:00:02]} (29... axb4 $11 30. Rxb4 b5) 30. bxa5 $16 {[%emt 0:00:09]} b5 {[%emt 0:00:01]} 31. Nd3 {[%emt 0:00:03]} (31. h4 $1 $16) 31... Rxa5 $11 {[%emt 0:00:25]} 32. Rb4 {[%emt 0:00:03]} Rxa3 {[%emt 0:00:13]} 33. Qf3 {[%emt 0:00:01]} Qg7 $1 {[%emt 0:00:33]} (33... Qxh3 34. Qf6+ Ke8 35. Rf4 $18) 34. Rf4 {[%emt 0:00:01]} Rha8 {[%emt 0:00:03]} ({Black should play} 34... Ke8 $11) 35. Rf6 {[%emt 0:00:01]} (35. h4 $14) 35... Rxd3+ {[%emt 0:00:06]} 36. Kxd3 {[%emt 0:00:02]} Be8 {[%emt 0:00:02] [#]} (36... b4 $14) 37. Qf4 {[%emt 0:00:02]} (37. Qh1 $1 $16) 37... c5 $14 {[%emt 0:00:03]} 38. h4 {[%emt 0:00:03]} Qh7 {[%emt 0:00:03]} (38... Qh8 $14) 39. Kd2 {[%emt 0:00:04]} Ra2 {[%emt 0:00:03]} 40. e4 {[%emt 0:00:02]} (40. Qg5 $16 Kd7 41. Rb1) 40... Ra4 $2 {[%emt 0:00:09]} (40... d4 $1 $11 {and Black is okay.}) 41. Qg5 $18 {[%emt 0:00:05]} Rxe4 $2 {[%emt 0:00:04]} (41... Qh5) 42. Rf4+ $18 {[%emt 0:00:10]} (42. Rxg6+ Kd7 43. Rh6 Rd4+ 44. Kc1 Qe4 $18) 42... Kf8 {[%emt 0:00:06]} 43. Rxe4 {[%emt 0:00:01]} (43. Qxg6 $2 {perishes.} Qxg6 44. Rxg6 Rxf4 $19) 43... dxe4 {[%emt 0:00:00]} 44. Ke3 {[%emt 0:00:02]} Bc6 {[%emt 0:00:05]} (44... Qh5 $142) 45. Ra1 {[%emt 0:00:09]} Qh5 {[%emt 0:00:08]} 46. Qxh5 {[%emt 0:00:01]} gxh5 {[%emt 0:00:02]} 47. Ra7 {[%emt 0:00:01]} Bd5 {[%emt 0:00:06]} 48. Rc7 {[%emt 0:00:01]} c4 {[%emt 0:00:10]} 49. c3 {[%emt 0:00:00]} Kg7 {[%emt 0:00:02]} 50. Kf4 {[%emt 0:00:01]} Kg6 {[%emt 0:00:03]} 51. Rc5 {[%emt 0:00:00]} f6 {[%emt 0:00:08]} 52. Rxb5 {[%emt 0:00:01]} Ba8 {[%emt 0:00:03]} 53. Rb6 {[%emt 0:00:02]} Bd5 {[%emt 0:00:01]} 54. Rd6 {[%emt 0:00:01]} Kf7 {[%emt 0:00:01]} 55. Rd7+ {[%emt 0:00:01]} Kg6 {[%emt 0:00:01]} 56. Re7 {[%emt 0:00:03]} f5 {[%emt 0:00:04]} 57. Rc7 {[%emt 0:00:06]} Kh6 {[%emt 0:00:02]} 58. Rf7 {[%emt 0:00:01]} Kg6 {[%emt 0:00:01]} 59. Rf6+ {[%emt 0:00:00]} Kg7 {[%emt 0:00:01]} 60. Kg5 {[%emt 0:00:01]} Kh7 {[%emt 0:00:09]} 61. Kxh5 {[%emt 0:00:00]} Kg7 {[%emt 0:00:02]} 62. Kg5 {[%emt 0:00:01]} f4 {[%emt 0:00:04]} 63. Kxf4 {[%emt 0:00:01]} 1-0

[Event "CCT Chessable Masters D-III 2024"]
[Site "Online"]
[Date "2024.02.02"]
[Round "1"]
[White "rasmussvane"]
[Black "kpio91"]
[Result "0-1"]
[ECO "D02"]
[WhiteElo "2599"]
[BlackElo "2430"]
[Annotator "NA"]
[PlyCount "112"]
[EventDate "2024.01.12"]
[EventType "k.o."]
[EventCountry "NET"]
[SourceTitle "playchess.com"]
[Source "ChessBase"]
[SourceQuality "1"]
[TimeControl "600+2"]

1. d4 {[%emt 0:00:04]} Nf6 {[%emt 0:00:05]} 2. Nf3 {[%emt 0:00:03]} d5 {[%emt 0:00:03]} 3. Bf4 {[%emt 0:00:01]} c5 {[%emt 0:00:04]} 4. e3 {[%emt 0:00:07]} cxd4 {[%emt 0:00:02]} 5. exd4 {[%emt 0:00:01]} Nc6 {[%emt 0:00:01]} 6. c3 {[%emt 0:00:09]} g6 {[%emt 0:00:26]} 7. h3 {[%emt 0:00:08]} Bg7 {[%emt 0:00:10]} 8. Be2 {[%emt 0:00:02]} O-O {[%emt 0:00:01]} 9. O-O {[%emt 0:00:00]} Nh5 {[%emt 0:00:02]} 10. Bh2 {[%emt 0:00:02]} Bh6 {[%emt 0:00:02]} 11. Re1 {[%emt 0:00:03]} Bf4 {[%emt 0:00:16]} 12. Bxf4 {[%emt 0:00:24]} Nxf4 {[%emt 0:00:01]} 13. Nbd2 {[%emt 0:00:08]} Qd6 {[%emt 0:00:29]} 14. Bf1 {[%emt 0:00:07]} Bf5 {[%emt 0:00:17]} 15. Nb3 {[%emt 0:00:14]} Rae8 {[%emt 0:00:05]} 16. Nc5 {[%emt 0:01:11]} Bc8 {[%emt 0:00:13]} 17. Qb3 {[%emt 0:00:38]} e5 {[%emt 0:00:31]} 18. Qa3 {[%emt 0:01:54]} b6 {[%emt 0:02:43]} 19. Ne4 {[%emt 0:00:37]} Qxa3 {[%emt 0:01:00]} 20. Nf6+ {[%emt 0:00:02]} Kh8 {[%emt 0:00:00]} 21. bxa3 {[%emt 0:00:01]} Re6 {[%emt 0:00:01]} 22. dxe5 {[%emt 0:00:22]} Nxe5 {[%emt 0:00:01]} 23. Nxe5 {[%emt 0:00:53]} Rxf6 {[%emt 0:00:03]} 24. Rad1 {[%emt 0:00:01]} Rd8 {[%emt 0:00:20]} 25. Bb5 {[%emt 0:00:37]} a6 {[%emt 0:00:40]} 26. Ba4 {[%emt 0:00:23]} Kg7 {[%emt 0:00:19]} 27. Bb3 {[%emt 0:00:19]} Rfd6 {[%emt 0:00:13]} 28. Nd3 {[%emt 0:00:58]} Ne6 {[%emt 0:00:48]} 29. Nb4 {[%emt 0:00:27]} d4 {[%emt 0:00:53]} 30. Bxe6 {[%emt 0:00:18]} Bxe6 {[%emt 0:00:02]} 31. Rxd4 {[%emt 0:00:01]} Rxd4 {[%emt 0:00:01]} 32. cxd4 {[%emt 0:00:01]} Rxd4 {[%emt 0:00:07]} 33. Nxa6 {[%emt 0:00:06]} Bxa2 {[%emt 0:00:22]} 34. Re3 {[%emt 0:00:02]} Bc4 {[%emt 0:00:04]} 35. Nb4 {[%emt 0:00:02]} b5 {[%emt 0:00:01]} 36. Kh2 {[%emt 0:00:06]} h5 {[%emt 0:00:02]} 37. Kg3 {[%emt 0:00:19]} h4+ {[%emt 0:00:10]} 38. Kf3 {[%emt 0:00:01]} g5 {[%emt 0:00:01]} 39. g3 {[%emt 0:00:11]} f5 {[%emt 0:00:11]} 40. Re5 {[%emt 0:00:09]} Kf6 {[%emt 0:00:06]} 41. Rc5 {[%emt 0:00:01]} Bf1 {[%emt 0:00:09]} 42. Rc6+ {[%emt 0:00:03]} Ke7 {[%emt 0:00:04]} 43. Rc5 {[%emt 0:00:06]} Ke6 {[%emt 0:00:05]} 44. Rc6+ {[%emt 0:00:03]} Kd7 {[%emt 0:00:01]} 45. Rg6 {[%emt 0:00:02]} Bxh3 {[%emt 0:00:09]} 46. Rxg5 {[%emt 0:00:00]} Bg4+ {[%emt 0:00:00]} 47. Ke3 {[%emt 0:00:01]} Re4+ {[%emt 0:00:01]} 48. Kd3 {[%emt 0:00:00]} h3 {[%emt 0:00:03]} 49. f3 {[%emt 0:00:06]} h2 {[%emt 0:00:03]} 50. Rg7+ {[%emt 0:00:01]} Re7 {[%emt 0:00:01]} 51. Rxe7+ {[%emt 0:00:05]} Kxe7 {[%emt 0:00:01]} 52. fxg4 {[%emt 0:00:03]} h1=Q {[%emt 0:00:02]} 53. gxf5 {[%emt 0:00:01]} Qf3+ {[%emt 0:00:01]} 54. Kd4 {[%emt 0:00:00]} Qxa3 {[%emt 0:00:03]} 55. Kc5 {[%emt 0:00:03]} Kf6 {[%emt 0:00:02]} 56. Kxb5 {[%emt 0:00:01]} Kxf5 {[%emt 0:00:00]} 0-1

[Event "CCT Chessable Masters D-III 2024"]
[Site "Online"]
[Date "2024.02.02"]
[Round "1"]
[White "Indjic, Aleksandar"]
[Black "Sargissian, Gabriel"]
[Result "1-0"]
[ECO "C26"]
[WhiteElo "2595"]
[BlackElo "2672"]
[Annotator "TA"]
[PlyCount "77"]
[EventDate "2024.01.12"]
[EventType "k.o."]
[EventCountry "NET"]
[SourceTitle "playchess.com"]
[Source "ChessBase"]
[SourceQuality "1"]
[TimeControl "600+2"]

{[%evp 27,77,-64,47,59,46,59,82,52,110,80,85,82,112,95,102,94,104,87,77,72,99,25,113,103,370,395,685,680,962,901,854,508,1068,1121,29992,29989,29986,950,936,658,628,625,1408,547,1010,402,29985,1111,29994,29995,29997,29998]} 1. e4 {[%emt 0:00:03]} e5 {[%emt 0:00:04]} 2. Nc3 {[%emt 0:00:01]} Nf6 {[%emt 0:00:01]} 3. d4 {[%emt 0:00:00]} exd4 {[%emt 0:00:01]} 4. Qxd4 {[%emt 0:00:01]} Nc6 {[%emt 0:00:01]} 5. Qd3 {[%emt 0:00:00]} Bc5 {[%emt 0:00:02]} 6. Bf4 {[%emt 0:00:16] C26: Vienna Game: 2...Nf6, sidelines .} d6 {[%emt 0:00:01]} 7. O-O-O {[%emt 0:00:01]} Be6 {[%emt 0:00:06]} 8. f3 {[%emt 0:00:01]} O-O {[%emt 0:00:23]} 9. g4 $146 {[%emt 0:00:04]} ({Predecessor:} 9. a3 a6 10. Be3 Qe7 11. f4 Bc4 12. Qxc4 Bxe3+ 13. Kb1 Bc5 14. Nd5 Nxd5 15. exd5 {0-1 Abdrlauf,E (2466)-Nakamura,H (2760) Titled Tuesday intern op 12th Jul Late blitz 2022 (4)}) 9... Nd7 {[%emt 0:00:23]} 10. Kb1 {[%emt 0:00:04]} Nde5 {[%emt 0:00:21]} 11. Qe2 {[%emt 0:00:02]} Qf6 {[%emt 0:01:15]} 12. Be3 {[%emt 0:00:01]} Bc4 {[%emt 0:00:14]} 13. Qd2 {[%emt 0:00:02]} Bb4 {[%emt 0:01:46]} 14. Bg2 $2 {[%emt 0:00:29]} (14. f4 $1 $16 Bxc3 15. Qxc3 Nxg4 (15... Bxf1 $2 16. fxe5 Qxe5 17. Qxe5 $18) 16. e5 (16. Bxc4 $2 Qxc3 17. bxc3 Nxe3 $19)) 14... Nd7 {[%emt 0:00:43]} (14... a5 $15) 15. Nd5 $1 $14 {[%emt 0:00:07]} Bxd5 {[%emt 0:00:46]} 16. Qxd5 {[%emt 0:00:01]} Bc5 {[%emt 0:00:04]} 17. Bc1 {[%emt 0:00:04]} Nd4 {[%emt 0:00:24]} (17... Nb6 $14 18. Qb3 Qe6) 18. g5 {[%emt 0:00:10]} (18. Qxb7 $6 Rfb8 19. Qa6 Nb5 $11) 18... Qe7 {[%emt 0:00:22]} 19. Qc4 {[%emt 0:00:50]} (19. Rxd4 $6 Nb6 20. Qb3 Bxd4 $11) 19... b5 {[%emt 0:00:18]} 20. Qf1 {[%emt 0:00:04]} b4 {[%emt 0:00:04]} 21. f4 {[%emt 0:00:04]} Rab8 {[%emt 0:00:03]} 22. Nf3 {[%emt 0:00:03]} Nb5 {[%emt 0:00:16]} 23. Qc4 {[%emt 0:02:01]} a5 {[%emt 0:00:09] [#]} 24. Bh3 {[%emt 0:00:13]} ({Better is} 24. e5 $1 $16) 24... Rfd8 {[%emt 0:00:28]} (24... c6 $1 $11) 25. e5 $1 $16 {[%emt 0:00:01]} Na7 $2 {[%emt 0:00:58][%mdl 8192]} (25... c6 $16) 26. Rhe1 $18 {[%emt 0:00:13]} Qf8 $2 {[%emt 0:00:25]} (26... Nb6 27. Qa6 dxe5 28. Qxa7 Ra8) 27. e6 {[%emt 0:00:04]} fxe6 {[%emt 0:00:09]} 28. Bxe6+ {[%emt 0:00:05]} Kh8 {[%emt 0:00:01]} 29. f5 {[%emt 0:00:04]} Nb6 {[%emt 0:00:04]} (29... b3 $142 30. axb3 (30. cxb3 Nc6 $18) 30... Nc6) 30. Qh4 $18 {[%emt 0:00:02]} d5 {[%emt 0:00:21]} 31. g6 {[%emt 0:00:01]} h6 {[%emt 0:00:01] [#]} 32. f6 {[%emt 0:00:01]} (32. Bxh6 $142 $1 {[%mdl 512]} Bf2 (32... gxh6 33. f6) 33. Qxf2 gxh6 34. Ne5 Kg7 35. Ng4 Nd7 36. Bxd7 (36. Qxa7 b3 $18) 36... Rb6 37. Be6 (37. Rxd5 Rf6 $18) (37. Qd4+ Kg8) 37... Rxe6 38. Rxe6) 32... Qxf6 $18 {[%emt 0:00:05]} 33. Qxf6 {[%emt 0:01:03]} gxf6 {[%emt 0:00:01]} 34. Bxh6 {[%emt 0:00:00]} Bf8 {[%emt 0:00:01]} 35. Bf4 {[%emt 0:00:19]} (35. Bxf8 $142 {g7+ would kill now.} Rxf8 36. g7+ (36. Bxd5 Rfd8 $18) 36... Kh7 37. gxf8=R (37. gxf8=B Nb5 $18) (37. gxf8=Q Rxf8 38. Bf5+ Kg7 $18) (37. gxf8=N+ Kg7 $18) 37... Rxf8 38. Rg1 (38. Bxd5 Nb5 $18) 38... Nc6 39. Rd3 (39. Bxd5 Rd8 $18) 39... Nc4 40. Nd4 (40. Bxd5 Kh8 41. Bxc4 b3 42. Nd4 bxa2+ 43. Bxa2 Rf7 44. Rh3+ Rh7 45. Rg8#) 40... Nd2+ 41. Kc1 (41. Rxd2 Ne5 42. Rdg2 Nf7 43. Rg4 Ng5 44. Rh4+ Kg6 45. Nf5 Rh8 46. Rxh8 c6 47. Rh6#) 41... Nb3+ 42. axb3 Nxd4 43. Rh3#) 35... Bd6 {[%emt 0:00:03]} 36. Bc1 {[%emt 0:00:02]} (36. Rg1 $142 Re8 37. g7+ (37. Bxd5 Bxf4 38. g7+ Kh7 $17) 37... Kh7 38. Ne5 (38. Bxd5 Bxf4 39. Bf7 Rg8 $11) (38. g8=B+ Rxg8 39. Bxg8+ Rxg8 $18) (38. g8=N Rxe6 39. Nd4 Rxg8 $18) 38... Rxe6 39. Rd3) 36... Kg7 {[%emt 0:00:05]} (36... Nc6 $18 37. h4 (37. Bxd5 Nxd5 38. Rxd5 Kg7 $16) 37... Re8) 37. Nh4 {[%emt 0:00:05]} (37. Bxd5 Nxd5 38. Rxd5 Rb5 $11) (37. Nd4 $142 f5 38. Bf7 (38. Nxf5+ Kf6 $18) (38. Bxf5 Rh8 $18) 38... f4 39. Ne6+ Kf6 40. Nxf4 Rh8 41. Ne6 (41. Nxd5+ Nxd5 42. Rxd5 Rxh2 $18) 41... Rh5 42. h4) 37... Rh8 {[%emt 0:00:09]} 38. Nf5+ {[%emt 0:00:02]} Kxg6 {[%emt 0:00:01]} 39. Rg1+ {[%emt 0:00:01]} 1-0